[Event "Titled Tuesday Blitz March 15 Early 2022"]
[White "Butti, Enrique"]
[Black "Van den Dikkenberg, Erik"]
[WhiteFideId "3700470"]
[BlackFideId "1005880"]
[WhiteElo "2080"]
[BlackElo "2118"]
[Result "1/2-1/2"]
[Round "06"]
[TimeControl "180+1"]
[Date "2022.03.15"]
[WhiteClock "0:00:01"]
[BlackClock "0:00:51"]

1. d4 {[%clk 0:02:59]}  Nf6 {[%clk 0:02:59]} 2. Nf3 {[%clk 0:02:58]}  g6 {[%clk 0:02:59]} 3. c4 {[%clk 0:02:57]}  Bg7 {[%clk 0:03:00]} 4. Nc3 {[%clk 0:02:57]}  O-O {[%clk 0:03:00]} 5. Bg5 {[%clk 0:02:56]}  d6 {[%clk 0:03:00]} 6. e3 {[%clk 0:02:54]}  c6 {[%clk 0:03:00]} 7. Be2 {[%clk 0:02:53]}  a6 {[%clk 0:03:00]} 8. O-O {[%clk 0:02:43]}  b5 {[%clk 0:03:00]} 9. b3 {[%clk 0:02:39]}  b4 {[%clk 0:02:58]} 10. Na4 {[%clk 0:02:33]}  Nbd7 {[%clk 0:02:57]} 11. Qc2 {[%clk 0:02:29]}  a5 {[%clk 0:02:55]} 12. c5 {[%clk 0:02:27]}  d5 {[%clk 0:02:54]} 13. Bd3 {[%clk 0:02:23]}  Rb8 {[%clk 0:02:50]} 14. Rfe1 {[%clk 0:02:04]}  h6 {[%clk 0:02:39]} 15. Bh4 {[%clk 0:02:02]}  g5 {[%clk 0:02:39]} 16. Bg3 {[%clk 0:01:42]}  Ra8 {[%clk 0:02:39]} 17. e4 {[%clk 0:01:38]}  dxe4 {[%clk 0:02:37]} 18. Bxe4 {[%clk 0:01:36]}  Nxe4 {[%clk 0:02:36]} 19. Qxe4 {[%clk 0:01:35]}  Nf6 {[%clk 0:02:23]} 20. Qxc6 {[%clk 0:01:17]}  Bd7 {[%clk 0:02:16]} 21. Qb6 {[%clk 0:01:15]}  Nd5 {[%clk 0:02:05]} 22. Qxd8 {[%clk 0:01:01]}  Rfxd8 {[%clk 0:02:04]} 23. Nb6 {[%clk 0:00:58]}  Nxb6 {[%clk 0:01:59]} 24. cxb6 {[%clk 0:00:56]}  Bc6 {[%clk 0:01:59]} 25. Rac1 {[%clk 0:00:50]}  Bxf3 {[%clk 0:01:54]} 26. gxf3 {[%clk 0:00:49]}  Bxd4 {[%clk 0:01:52]} 27. b7 {[%clk 0:00:49]}  Bc3 {[%clk 0:01:01]} 28. bxa8=Q {[%clk 0:00:42]}  Rxa8 {[%clk 0:01:00]} 29. Rxe7 {[%clk 0:00:35]}  Kf8 {[%clk 0:00:59]} 30. Rc7 {[%clk 0:00:32]}  Rd8 {[%clk 0:00:57]} 31. R7xc3 {[%clk 0:00:31]}  bxc3 {[%clk 0:00:57]} 32. Rxc3 {[%clk 0:00:31]}  f5 {[%clk 0:00:58]} 33. Bc7 {[%clk 0:00:29]}  Rd1+ {[%clk 0:00:57]} 34. Kg2 {[%clk 0:00:28]}  Rd2 {[%clk 0:00:57]} 35. a4 {[%clk 0:00:26]}  Kf7 {[%clk 0:00:54]} 36. Bxa5 {[%clk 0:00:24]}  Rd5 {[%clk 0:00:53]} 37. Bb6 {[%clk 0:00:24]}  h5 {[%clk 0:00:51]} 38. a5 {[%clk 0:00:23]}  Rb5 {[%clk 0:00:51]} 39. Rc6 {[%clk 0:00:18]}  Rxb3 {[%clk 0:00:50]} 40. a6 {[%clk 0:00:16]}  Ra3 {[%clk 0:00:50]} 41. a7 {[%clk 0:00:15]}  g4 {[%clk 0:00:50]} 42. Rc8 {[%clk 0:00:14]}  gxf3+ {[%clk 0:00:47]} 43. Kg3 {[%clk 0:00:13]}  h4+ {[%clk 0:00:46]} 44. Kxh4 {[%clk 0:00:13]}  Ra4+ {[%clk 0:00:47]} 45. Kg5 {[%clk 0:00:11]}  Rg4+ {[%clk 0:00:46]} 46. Kxf5 {[%clk 0:00:11]}  Ra4 {[%clk 0:00:46]} 47. a8=Q {[%clk 0:00:09]}  Rxa8 {[%clk 0:00:47]} 48. Rxa8 {[%clk 0:00:09]}  Ke7 {[%clk 0:00:47]} 49. Ra7+ {[%clk 0:00:08]}  Kd6 {[%clk 0:00:46]} 50. Ke4 {[%clk 0:00:08]}  Kc6 {[%clk 0:00:46]} 51. Kxf3 {[%clk 0:00:06]}  Kxb6 {[%clk 0:00:46]} 52. Rg7 {[%clk 0:00:07]}  Kc5 {[%clk 0:00:47]} 53. h4 {[%clk 0:00:06]}  Kd6 {[%clk 0:00:48]} 54. h5 {[%clk 0:00:04]}  Ke6 {[%clk 0:00:49]} 55. h6 {[%clk 0:00:05]}  Kf6 {[%clk 0:00:50]} 56. Rg1 {[%clk 0:00:03]}  Kf5 {[%clk 0:00:47]} 57. h7 {[%clk 0:00:04]}  Kf6 {[%clk 0:00:48]} 58. h8=Q+ {[%clk 0:00:03]}  Kf5 {[%clk 0:00:49]} 59. Qh7+ {[%clk 0:00:02]}  Ke6 {[%clk 0:00:50]} 60. Rg6+ {[%clk 0:00:01]}  Ke5 {[%clk 0:00:51]} 1/2-1/2


[Site "https://www.chess.com"]

[Event "Titled Tuesday Blitz March 15 Early 2022"]
[White "Chernomordik, Pavel"]
[Black "Cramling Bellon, Anna"]
[WhiteFideId "2804530"]
[BlackFideId "32009232"]
[WhiteElo "2249"]
[BlackElo "1905"]
[Result "0-1"]
[Round "06"]
[TimeControl "180+1"]
[Date "2022.03.15"]
[WhiteClock "0:00:06"]
[BlackClock "0:00:05"]

1. e4 {[%clk 0:03:00]}  c5 {[%clk 0:02:58]} 2. Nc3 {[%clk 0:03:00]}  Nc6 {[%clk 0:02:58]} 3. Bb5 {[%clk 0:02:59]}  e6 {[%clk 0:02:54]} 4. Bxc6 {[%clk 0:02:59]}  dxc6 {[%clk 0:02:54]} 5. e5 {[%clk 0:02:58]}  Ne7 {[%clk 0:02:51]} 6. f4 {[%clk 0:02:57]}  Nd5 {[%clk 0:02:47]} 7. Nge2 {[%clk 0:02:47]}  Qh4+ {[%clk 0:02:42]} 8. g3 {[%clk 0:02:43]}  Qh3 {[%clk 0:02:42]} 9. Kf2 {[%clk 0:02:35]}  Be7 {[%clk 0:02:33]} 10. Ne4 {[%clk 0:02:30]}  O-O {[%clk 0:02:22]} 11. d3 {[%clk 0:02:29]}  f6 {[%clk 0:02:10]} 12. c4 {[%clk 0:02:21]}  Nxf4 {[%clk 0:01:31]} 13. gxf4 {[%clk 0:02:08]}  fxe5 {[%clk 0:01:31]} 14. Qf1 {[%clk 0:01:52]}  Qxd3 {[%clk 0:01:23]} 15. N2g3 {[%clk 0:01:36]}  Qd4+ {[%clk 0:01:03]} 16. Be3 {[%clk 0:01:35]}  Rxf4+ {[%clk 0:01:00]} 17. Ke2 {[%clk 0:01:27]}  Qxc4+ {[%clk 0:00:58]} 18. Kd2 {[%clk 0:01:25]}  Rxf1 {[%clk 0:00:56]} 19. Rhxf1 {[%clk 0:01:24]}  Bd7 {[%clk 0:00:50]} 20. b3 {[%clk 0:01:19]}  Qb4+ {[%clk 0:00:48]} 21. Kc2 {[%clk 0:01:19]}  c4 {[%clk 0:00:44]} 22. Bd2 {[%clk 0:01:15]}  cxb3+ {[%clk 0:00:43]} 23. axb3 {[%clk 0:01:15]}  Qb6 {[%clk 0:00:35]} 24. Ne2 {[%clk 0:01:10]}  Rf8 {[%clk 0:00:29]} 25. Rg1 {[%clk 0:01:07]}  Kh8 {[%clk 0:00:17]} 26. N2c3 {[%clk 0:00:57]}  c5 {[%clk 0:00:15]} 27. Rg3 {[%clk 0:00:48]}  Bc6 {[%clk 0:00:15]} 28. Rag1 {[%clk 0:00:46]}  Bxe4+ {[%clk 0:00:15]} 29. Nxe4 {[%clk 0:00:46]}  g6 {[%clk 0:00:15]} 30. Bc3 {[%clk 0:00:40]}  Qc7 {[%clk 0:00:11]} 31. Ng5 {[%clk 0:00:37]}  Bxg5 {[%clk 0:00:11]} 32. Rxg5 {[%clk 0:00:37]}  Rf2+ {[%clk 0:00:11]} 33. Kb1 {[%clk 0:00:35]}  Kg8 {[%clk 0:00:10]} 34. Rxe5 {[%clk 0:00:32]}  Qc6 {[%clk 0:00:08]} 35. Re3 {[%clk 0:00:27]}  Qb5 {[%clk 0:00:04]} 36. Bb2 {[%clk 0:00:22]}  Rf1+ {[%clk 0:00:04]} 37. Rxf1 {[%clk 0:00:22]}  Qxf1+ {[%clk 0:00:05]} 38. Ka2 {[%clk 0:00:22]}  Qa6+ {[%clk 0:00:05]} 39. Kb1 {[%clk 0:00:20]}  c4 {[%clk 0:00:06]} 40. bxc4 {[%clk 0:00:18]}  Qxc4 {[%clk 0:00:07]} 41. Rc3 {[%clk 0:00:18]}  Qf1+ {[%clk 0:00:07]} 42. Ka2 {[%clk 0:00:18]}  b5 {[%clk 0:00:05]} 43. Rc8+ {[%clk 0:00:17]}  Kf7 {[%clk 0:00:05]} 44. Rc7+ {[%clk 0:00:18]}  Ke8 {[%clk 0:00:06]} 45. Rxh7 {[%clk 0:00:16]}  Qc4+ {[%clk 0:00:05]} 46. Ka1 {[%clk 0:00:16]}  b4 {[%clk 0:00:06]} 47. Rxa7 {[%clk 0:00:15]}  b3 {[%clk 0:00:05]} 48. Bg7 {[%clk 0:00:10]}  Qf1+ {[%clk 0:00:05]} 49. Kb2 {[%clk 0:00:09]}  Qf2+ {[%clk 0:00:05]} 50. Kxb3 {[%clk 0:00:07]}  Qxa7 {[%clk 0:00:05]} 51. Be5 {[%clk 0:00:06]}  Qb6+ {[%clk 0:00:05]} 52. Kc4 {[%clk 0:00:06]}  Qc6+ {[%clk 0:00:05]} 0-1


[Site "https://www.chess.com"]

[Event "Titled Tuesday Blitz March 15 Early 2022"]
[White "Coto Mederos, Michel"]
[Black "Pranav Anand"]
[WhiteFideId "3508528"]
[BlackFideId "46626786"]
[WhiteElo "2427"]
[BlackElo "2259"]
[Result "0-1"]
[Round "06"]
[TimeControl "180+1"]
[Date "2022.03.15"]
[WhiteClock "0:00:14"]
[BlackClock "0:01:40"]

1. c4 {[%clk 0:02:50]}  e5 {[%clk 0:02:56]} 2. Nc3 {[%clk 0:02:49]}  d6 {[%clk 0:02:57]} 3. g3 {[%clk 0:02:49]}  Nf6 {[%clk 0:02:56]} 4. Bg2 {[%clk 0:02:49]}  Be7 {[%clk 0:02:57]} 5. e3 {[%clk 0:02:49]}  O-O {[%clk 0:02:57]} 6. Nge2 {[%clk 0:02:50]}  h5 {[%clk 0:02:57]} 7. d4 {[%clk 0:02:39]}  Nc6 {[%clk 0:02:55]} 8. d5 {[%clk 0:02:30]}  Nb8 {[%clk 0:02:50]} 9. e4 {[%clk 0:02:29]}  h4 {[%clk 0:02:49]} 10. h3 {[%clk 0:02:25]}  Nh5 {[%clk 0:02:44]} 11. Be3 {[%clk 0:02:16]}  Bg5 {[%clk 0:02:41]} 12. f4 {[%clk 0:02:08]}  Bh6 {[%clk 0:02:33]} 13. Qd2 {[%clk 0:01:50]}  Nxg3 {[%clk 0:02:24]} 14. Nxg3 {[%clk 0:01:42]}  exf4 {[%clk 0:02:24]} 15. Bxf4 {[%clk 0:01:36]}  Bxf4 {[%clk 0:02:24]} 16. Qxf4 {[%clk 0:01:37]}  hxg3 {[%clk 0:02:25]} 17. O-O-O {[%clk 0:01:25]}  Nd7 {[%clk 0:02:23]} 18. Qxg3 {[%clk 0:01:25]}  Ne5 {[%clk 0:02:24]} 19. Rhg1 {[%clk 0:01:19]}  Qf6 {[%clk 0:02:21]} 20. Rdf1 {[%clk 0:01:15]}  Qh6+ {[%clk 0:02:21]} 21. Kb1 {[%clk 0:01:09]}  Nxc4 {[%clk 0:02:21]} 22. Ka1 {[%clk 0:00:58]}  b5 {[%clk 0:02:17]} 23. Rf4 {[%clk 0:00:45]}  Bd7 {[%clk 0:02:04]} 24. Bf3 {[%clk 0:00:43]}  b4 {[%clk 0:01:59]} 25. Ne2 {[%clk 0:00:42]}  f5 {[%clk 0:01:56]} 26. Nd4 {[%clk 0:00:37]}  fxe4 {[%clk 0:01:51]} 27. Bxe4 {[%clk 0:00:34]}  Rxf4 {[%clk 0:01:50]} 28. Ne6 {[%clk 0:00:17]}  Bxe6 {[%clk 0:01:46]} 29. dxe6 {[%clk 0:00:18]}  Rxe4 {[%clk 0:01:47]} 30. Qg2 {[%clk 0:00:18]}  d5 {[%clk 0:01:46]} 31. Qf3 {[%clk 0:00:17]}  Qxe6 {[%clk 0:01:43]} 32. Qg3 {[%clk 0:00:15]}  g6 {[%clk 0:01:40]} 33. h4 {[%clk 0:00:14]}  Re8 {[%clk 0:01:40]} 0-1


[Site "https://www.chess.com"]

[Event "Titled Tuesday Blitz March 15 Early 2022"]
[White "Demchenko, Anton"]
[Black "Riehle, Marco"]
[WhiteFideId "4160258"]
[BlackFideId "12904392"]
[WhiteElo "2539"]
[BlackElo "2462"]
[Result "1-0"]
[Round "06"]
[TimeControl "180+1"]
[Date "2022.03.15"]
[WhiteClock "0:01:53"]
[BlackClock "0:01:47"]

1. h3 {[%clk 0:02:58]}  d5 {[%clk 0:02:59]} 2. a3 {[%clk 0:02:57]}  e5 {[%clk 0:02:59]} 3. d3 {[%clk 0:02:57]}  c5 {[%clk 0:02:58]} 4. e3 {[%clk 0:02:57]}  Nc6 {[%clk 0:02:58]} 5. g3 {[%clk 0:02:57]}  f6 {[%clk 0:02:57]} 6. Bg2 {[%clk 0:02:57]}  Be6 {[%clk 0:02:56]} 7. b3 {[%clk 0:02:57]}  Bd6 {[%clk 0:02:56]} 8. Ne2 {[%clk 0:02:55]}  Nge7 {[%clk 0:02:55]} 9. Nd2 {[%clk 0:02:53]}  Qd7 {[%clk 0:02:55]} 10. Bb2 {[%clk 0:02:51]}  O-O-O {[%clk 0:02:55]} 11. c4 {[%clk 0:02:50]}  d4 {[%clk 0:02:54]} 12. exd4 {[%clk 0:02:48]}  exd4 {[%clk 0:02:53]} 13. b4 {[%clk 0:02:34]}  cxb4 {[%clk 0:02:41]} 14. Ne4 {[%clk 0:02:26]}  f5 {[%clk 0:02:26]} 15. Nxd6+ {[%clk 0:02:24]}  Qxd6 {[%clk 0:02:27]} 16. O-O {[%clk 0:02:25]}  g5 {[%clk 0:02:25]} 17. axb4 {[%clk 0:02:23]}  Qxb4 {[%clk 0:02:23]} 18. Ba3 {[%clk 0:02:24]}  Qb6 {[%clk 0:02:20]} 19. Bxe7 {[%clk 0:02:24]}  Nxe7 {[%clk 0:02:20]} 20. Rb1 {[%clk 0:02:24]}  Qd6 {[%clk 0:02:16]} 21. Rxb7 {[%clk 0:02:24]}  Nc6 {[%clk 0:02:16]} 22. Qb3 {[%clk 0:02:18]}  Rd7 {[%clk 0:02:04]} 23. Rb1 {[%clk 0:02:17]}  Kd8 {[%clk 0:01:53]} 24. Bxc6 {[%clk 0:02:12]}  Qxc6 {[%clk 0:01:54]} 25. Rb8+ {[%clk 0:02:12]}  Ke7 {[%clk 0:01:54]} 26. Rxh8 {[%clk 0:02:12]}  f4 {[%clk 0:01:54]} 27. Rxh7+ {[%clk 0:02:10]}  Kf6 {[%clk 0:01:54]} 28. Rxd7 {[%clk 0:01:56]}  Qxd7 {[%clk 0:01:55]} 29. Qb2 {[%clk 0:01:54]}  Qe8 {[%clk 0:01:52]} 30. Qxd4+ {[%clk 0:01:54]}  Kg6 {[%clk 0:01:51]} 31. Qe4+ {[%clk 0:01:54]}  Kf6 {[%clk 0:01:49]} 32. Nd4 {[%clk 0:01:54]}  fxg3 {[%clk 0:01:48]} 33. fxg3 {[%clk 0:01:54]}  g4 {[%clk 0:01:47]} 34. Rf1+ {[%clk 0:01:54]}  Kg7 {[%clk 0:01:48]} 35. Nxe6+ {[%clk 0:01:54]}  Kh8 {[%clk 0:01:47]} 36. Qe5+ {[%clk 0:01:53]} 1-0


[Site "https://www.chess.com"]

[Event "Titled Tuesday Blitz March 15 Early 2022"]
[White "Dubov, Daniil"]
[Black "Shevchenko, Kirill"]
[WhiteFideId "24126055"]
[BlackFideId "14129574"]
[WhiteElo "2791"]
[BlackElo "2624"]
[Result "1-0"]
[Round "06"]
[TimeControl "180+1"]
[Date "2022.03.15"]
[WhiteClock "0:00:05"]
[BlackClock "0:00:01"]

1. d4 {[%clk 0:02:57]}  Nf6 {[%clk 0:02:58]} 2. Nf3 {[%clk 0:02:57]}  c5 {[%clk 0:02:57]} 3. d5 {[%clk 0:02:55]}  b5 {[%clk 0:02:58]} 4. c4 {[%clk 0:02:53]}  g6 {[%clk 0:02:50]} 5. cxb5 {[%clk 0:02:51]}  a6 {[%clk 0:02:47]} 6. b6 {[%clk 0:02:51]}  d6 {[%clk 0:02:30]} 7. e4 {[%clk 0:02:43]}  Bg7 {[%clk 0:02:17]} 8. Nc3 {[%clk 0:02:25]}  O-O {[%clk 0:01:54]} 9. a4 {[%clk 0:02:24]}  Qxb6 {[%clk 0:01:45]} 10. a5 {[%clk 0:02:23]}  Qb7 {[%clk 0:01:40]} 11. h3 {[%clk 0:01:56]}  e6 {[%clk 0:01:35]} 12. Be2 {[%clk 0:01:55]}  exd5 {[%clk 0:01:31]} 13. exd5 {[%clk 0:01:56]}  Bf5 {[%clk 0:01:19]} 14. O-O {[%clk 0:01:47]}  Re8 {[%clk 0:01:16]} 15. Nd2 {[%clk 0:01:25]}  Qc7 {[%clk 0:00:35]} 16. Nc4 {[%clk 0:01:22]}  Nbd7 {[%clk 0:00:29]} 17. Bf4 {[%clk 0:01:20]}  Ne5 {[%clk 0:00:26]} 18. Bxe5 {[%clk 0:01:08]}  dxe5 {[%clk 0:00:26]} 19. g4 {[%clk 0:01:02]}  Bd7 {[%clk 0:00:24]} 20. g5 {[%clk 0:00:56]}  Nh5 {[%clk 0:00:21]} 21. Bxh5 {[%clk 0:00:55]}  gxh5 {[%clk 0:00:21]} 22. Qxh5 {[%clk 0:00:53]}  Bb5 {[%clk 0:00:20]} 23. Nxb5 {[%clk 0:00:46]}  axb5 {[%clk 0:00:20]} 24. Ne3 {[%clk 0:00:46]}  e4 {[%clk 0:00:16]} 25. Qg4 {[%clk 0:00:37]}  Qe5 {[%clk 0:00:12]} 26. Rfd1 {[%clk 0:00:34]}  Qxb2 {[%clk 0:00:10]} 27. Rab1 {[%clk 0:00:31]}  Qc3 {[%clk 0:00:08]} 28. Rxb5 {[%clk 0:00:30]}  Rxa5 {[%clk 0:00:08]} 29. Rxa5 {[%clk 0:00:30]}  Qxa5 {[%clk 0:00:09]} 30. d6 {[%clk 0:00:30]}  Bd4 {[%clk 0:00:09]} 31. d7 {[%clk 0:00:29]}  Rd8 {[%clk 0:00:05]} 32. Nf5 {[%clk 0:00:29]}  Qa4 {[%clk 0:00:05]} 33. Rxd4 {[%clk 0:00:20]}  cxd4 {[%clk 0:00:05]} 34. Qxe4 {[%clk 0:00:20]}  Qxd7 {[%clk 0:00:05]} 35. Qe5 {[%clk 0:00:21]}  f6 {[%clk 0:00:04]} 36. Qxf6 {[%clk 0:00:04]}  h5 {[%clk 0:00:04]} 37. Ne7+ {[%clk 0:00:04]}  Qxe7 {[%clk 0:00:03]} 38. Qxe7 {[%clk 0:00:05]}  Rf8 {[%clk 0:00:03]} 39. Qe6+ {[%clk 0:00:05]}  Kg7 {[%clk 0:00:03]} 40. Qe5+ {[%clk 0:00:05]}  Kg6 {[%clk 0:00:03]} 41. h4 {[%clk 0:00:05]}  Rd8 {[%clk 0:00:01]} 42. Qf6+ {[%clk 0:00:05]} 1-0


[Site "https://www.chess.com"]

[Event "Titled Tuesday Blitz March 15 Early 2022"]
[White "Dushyant Sharma"]
[Black "Khabinets, Ivan"]
[WhiteFideId "25065130"]
[BlackFideId "14115980"]
[WhiteElo "2105"]
[BlackElo "2114"]
[Result "1-0"]
[Round "06"]
[TimeControl "180+1"]
[Date "2022.03.15"]
[WhiteClock "0:00:35"]
[BlackClock "0:00:45"]

1. e4 {[%clk 0:03:00]}  c5 {[%clk 0:03:00]} 2. Nf3 {[%clk 0:03:00]}  d6 {[%clk 0:03:00]} 3. d4 {[%clk 0:03:01]}  cxd4 {[%clk 0:03:01]} 4. Nxd4 {[%clk 0:03:02]}  Nf6 {[%clk 0:03:02]} 5. Nc3 {[%clk 0:03:03]}  a6 {[%clk 0:03:02]} 6. f4 {[%clk 0:03:03]}  e5 {[%clk 0:03:02]} 7. Nf3 {[%clk 0:03:03]}  Qc7 {[%clk 0:03:01]} 8. Bd3 {[%clk 0:03:04]}  Be7 {[%clk 0:03:01]} 9. O-O {[%clk 0:03:05]}  O-O {[%clk 0:03:02]} 10. Kh1 {[%clk 0:03:05]}  b5 {[%clk 0:03:03]} 11. a3 {[%clk 0:03:05]}  Bb7 {[%clk 0:03:03]} 12. Qe1 {[%clk 0:03:05]}  Nbd7 {[%clk 0:03:01]} 13. Bd2 {[%clk 0:02:48]}  Nc5 {[%clk 0:02:51]} 14. b4 {[%clk 0:02:44]}  Ncd7 {[%clk 0:02:44]} 15. fxe5 {[%clk 0:01:57]}  dxe5 {[%clk 0:02:37]} 16. Nh4 {[%clk 0:01:54]}  g6 {[%clk 0:02:30]} 17. Bh6 {[%clk 0:01:49]}  Rfd8 {[%clk 0:02:25]} 18. Nf5 {[%clk 0:01:48]}  Bf8 {[%clk 0:02:09]} 19. Bxf8 {[%clk 0:01:38]}  Kxf8 {[%clk 0:02:09]} 20. Ne3 {[%clk 0:01:27]}  Kg7 {[%clk 0:02:01]} 21. Rd1 {[%clk 0:01:20]}  Rac8 {[%clk 0:02:00]} 22. Ncd5 {[%clk 0:01:19]}  Nxd5 {[%clk 0:01:59]} 23. exd5 {[%clk 0:01:18]}  Bxd5 {[%clk 0:02:00]} 24. Nxd5 {[%clk 0:01:17]}  Qd6 {[%clk 0:01:31]} 25. Ne3 {[%clk 0:01:03]}  Qe6 {[%clk 0:01:31]} 26. Qg3 {[%clk 0:01:02]}  e4 {[%clk 0:01:29]} 27. Nf5+ {[%clk 0:00:47]}  Kh8 {[%clk 0:01:21]} 28. Bxe4 {[%clk 0:00:44]}  Qxe4 {[%clk 0:01:05]} 29. Nd6 {[%clk 0:00:43]}  Qe6 {[%clk 0:00:48]} 30. Nxf7+ {[%clk 0:00:37]}  Kg8 {[%clk 0:00:48]} 31. Nxd8 {[%clk 0:00:35]}  Rxd8 {[%clk 0:00:49]} 32. Qb3 {[%clk 0:00:34]}  Qxb3 {[%clk 0:00:45]} 33. cxb3 {[%clk 0:00:35]} 1-0


[Site "https://www.chess.com"]

[Event "Titled Tuesday Blitz March 15 Early 2022"]
[White "Eggleston, Thomas A"]
[Black "Winkels, Marcel"]
[WhiteFideId "412139"]
[BlackFideId "1003887"]
[WhiteElo "2174"]
[BlackElo "1900"]
[Result "0-1"]
[Round "06"]
[TimeControl "180+1"]
[Date "2022.03.15"]
[WhiteClock "0:00:15"]
[BlackClock "0:01:08"]

1. e4 {[%clk 0:03:00]}  c5 {[%clk 0:02:59]} 2. Nf3 {[%clk 0:03:00]}  d6 {[%clk 0:02:59]} 3. d4 {[%clk 0:02:57]}  cxd4 {[%clk 0:03:00]} 4. Nxd4 {[%clk 0:02:58]}  Nf6 {[%clk 0:02:59]} 5. Nc3 {[%clk 0:02:58]}  a6 {[%clk 0:03:00]} 6. Be2 {[%clk 0:02:51]}  e5 {[%clk 0:02:59]} 7. Nb3 {[%clk 0:02:50]}  Be7 {[%clk 0:03:00]} 8. Be3 {[%clk 0:02:48]}  Be6 {[%clk 0:02:58]} 9. Nd5 {[%clk 0:02:46]}  Nxd5 {[%clk 0:02:52]} 10. exd5 {[%clk 0:02:46]}  Bf5 {[%clk 0:02:53]} 11. a4 {[%clk 0:02:41]}  Nd7 {[%clk 0:02:52]} 12. a5 {[%clk 0:02:41]}  Rc8 {[%clk 0:02:51]} 13. c4 {[%clk 0:02:38]}  O-O {[%clk 0:02:45]} 14. O-O {[%clk 0:02:38]}  Bg6 {[%clk 0:02:34]} 15. f4 {[%clk 0:02:33]}  f5 {[%clk 0:02:33]} 16. fxe5 {[%clk 0:02:32]}  Nxe5 {[%clk 0:02:32]} 17. Ra4 {[%clk 0:02:20]}  Qd7 {[%clk 0:02:30]} 18. Nd4 {[%clk 0:02:18]}  Ng4 {[%clk 0:02:13]} 19. Bxg4 {[%clk 0:02:16]}  fxg4 {[%clk 0:02:12]} 20. Rxf8+ {[%clk 0:02:02]}  Bxf8 {[%clk 0:02:09]} 21. Ne6 {[%clk 0:01:53]}  Bf7 {[%clk 0:02:08]} 22. Nd4 {[%clk 0:01:37]}  Be7 {[%clk 0:01:59]} 23. Bf2 {[%clk 0:01:32]}  Bf6 {[%clk 0:01:58]} 24. Rb4 {[%clk 0:01:16]}  Re8 {[%clk 0:01:55]} 25. Rb3 {[%clk 0:01:06]}  Qa4 {[%clk 0:01:48]} 26. Qd3 {[%clk 0:00:47]}  Qa1+ {[%clk 0:01:38]} 27. Qf1 {[%clk 0:00:46]}  Qa4 {[%clk 0:01:32]} 28. Rxb7 {[%clk 0:00:44]}  Qxa5 {[%clk 0:01:26]} 29. Nc6 {[%clk 0:00:37]}  Qd2 {[%clk 0:01:18]} 30. b4 {[%clk 0:00:29]}  Bg6 {[%clk 0:01:11]} 31. b5 {[%clk 0:00:25]}  Bd3 {[%clk 0:01:10]} 32. Qe1 {[%clk 0:00:15]}  Rxe1+ {[%clk 0:01:08]} 0-1


[Site "https://www.chess.com"]

[Event "Titled Tuesday Blitz March 15 Early 2022"]
[White "Fier, Alexandr"]
[Black "Esipenko, Andrey"]
[WhiteFideId "2107139"]
[BlackFideId "24175439"]
[WhiteElo "2571"]
[BlackElo "2617"]
[Result "0-1"]
[Round "06"]
[TimeControl "180+1"]
[Date "2022.03.15"]
[WhiteClock "0:00:10"]
[BlackClock "0:00:06"]

1. d4 {[%clk 0:02:59]}  Nf6 {[%clk 0:02:50]} 2. c4 {[%clk 0:03:00]}  e6 {[%clk 0:02:51]} 3. Nf3 {[%clk 0:03:00]}  b6 {[%clk 0:02:51]} 4. g3 {[%clk 0:02:59]}  Ba6 {[%clk 0:02:51]} 5. b3 {[%clk 0:02:59]}  Bb4+ {[%clk 0:02:50]} 6. Bd2 {[%clk 0:02:59]}  Be7 {[%clk 0:02:51]} 7. Bg2 {[%clk 0:02:59]}  O-O {[%clk 0:02:51]} 8. O-O {[%clk 0:02:59]}  d5 {[%clk 0:02:52]} 9. cxd5 {[%clk 0:02:56]}  exd5 {[%clk 0:02:53]} 10. Nc3 {[%clk 0:02:56]}  Nbd7 {[%clk 0:02:54]} 11. Rc1 {[%clk 0:02:56]}  Re8 {[%clk 0:02:53]} 12. Bf4 {[%clk 0:02:53]}  Nf8 {[%clk 0:02:43]} 13. Re1 {[%clk 0:02:53]}  Ne6 {[%clk 0:02:37]} 14. Be5 {[%clk 0:02:53]}  c6 {[%clk 0:02:30]} 15. Bxf6 {[%clk 0:02:44]}  Bxf6 {[%clk 0:02:28]} 16. e3 {[%clk 0:02:45]}  Rc8 {[%clk 0:02:29]} 17. b4 {[%clk 0:02:41]}  Bb7 {[%clk 0:02:24]} 18. Qb3 {[%clk 0:02:39]}  Qd6 {[%clk 0:02:15]} 19. Red1 {[%clk 0:02:37]}  Nc7 {[%clk 0:01:46]} 20. Ne1 {[%clk 0:02:32]}  Ba6 {[%clk 0:01:44]} 21. Bf1 {[%clk 0:02:26]}  Bxf1 {[%clk 0:01:42]} 22. Kxf1 {[%clk 0:02:27]}  h5 {[%clk 0:01:39]} 23. Nd3 {[%clk 0:02:22]}  h4 {[%clk 0:01:37]} 24. Nf4 {[%clk 0:02:17]}  b5 {[%clk 0:01:31]} 25. Nce2 {[%clk 0:02:10]}  Na8 {[%clk 0:01:30]} 26. a4 {[%clk 0:01:57]}  bxa4 {[%clk 0:01:29]} 27. Qxa4 {[%clk 0:01:58]}  Nb6 {[%clk 0:01:30]} 28. Qxa7 {[%clk 0:01:55]}  Nc4 {[%clk 0:01:30]} 29. Qc5 {[%clk 0:01:52]}  Qd7 {[%clk 0:01:30]} 30. b5 {[%clk 0:01:36]}  Red8 {[%clk 0:01:19]} 31. bxc6 {[%clk 0:01:15]}  Rxc6 {[%clk 0:01:18]} 32. Qb4 {[%clk 0:01:12]}  g5 {[%clk 0:01:08]} 33. Nd3 {[%clk 0:01:00]}  Qh3+ {[%clk 0:00:58]} 34. Kg1 {[%clk 0:01:00]}  Qg4 {[%clk 0:00:59]} 35. Qe1 {[%clk 0:00:52]}  Re6 {[%clk 0:00:52]} 36. Qf1 {[%clk 0:00:52]}  h3 {[%clk 0:00:47]} 37. Ne1 {[%clk 0:00:50]}  Rde8 {[%clk 0:00:29]} 38. Rd3 {[%clk 0:00:50]}  Bg7 {[%clk 0:00:22]} 39. Rcc3 {[%clk 0:00:49]}  Qf5 {[%clk 0:00:23]} 40. Rb3 {[%clk 0:00:44]}  R6e7 {[%clk 0:00:21]} 41. Nc3 {[%clk 0:00:41]}  g4 {[%clk 0:00:19]} 42. Rb5 {[%clk 0:00:41]}  Rd8 {[%clk 0:00:17]} 43. e4 {[%clk 0:00:41]}  Qh7 {[%clk 0:00:11]} 44. Rxd5 {[%clk 0:00:39]}  Rxd5 {[%clk 0:00:12]} 45. Nxd5 {[%clk 0:00:39]}  Rxe4 {[%clk 0:00:12]} 46. Rb3 {[%clk 0:00:39]}  Re8 {[%clk 0:00:11]} 47. Nd3 {[%clk 0:00:27]}  Nd2 {[%clk 0:00:11]} 48. Qd1 {[%clk 0:00:21]}  Nxb3 {[%clk 0:00:11]} 49. Qxb3 {[%clk 0:00:22]}  Qe4 {[%clk 0:00:11]} 50. Ne3 {[%clk 0:00:22]}  Bxd4 {[%clk 0:00:11]} 51. Nf4 {[%clk 0:00:15]}  Bxe3 {[%clk 0:00:09]} 52. Qb5 {[%clk 0:00:10]}  Bxf2+ {[%clk 0:00:06]} 53. Kxf2 {[%clk 0:00:10]}  Qe1# {[%clk 0:00:06]} 0-1


[Site "https://www.chess.com"]